fUSD/lending_fUSD_20250811
["ID","MTS","AMOUNT","RATE_DAILY","PERIOD"]
[378634254,1754934124498,179.94,0.00012369,2]
[378634256,1754934248333,947.88,0.00015358,2]
[378634257,1754934286536,509.0,0.00015328,2]
[378634258,1754934289161,306.64073174,0.00015962,2]
[378634259,1754934328533,252.22,0.00013699,2]
[378634262,1754934396813,273.49,0.00015352,2]
[378634263,1754934434849,150.0,9.7e-05,2]
[378634265,1754934489996,200.0,0.00015323,2]
[378634289,1754934631881,-200.0,0.00016053,2]
[378634290,1754934631891,-250.0,0.00016066,2]
[378634291,1754934632184,-151.11,0.00016079,2]
[378634292,1754934632194,-152.87585701,0.00016107,2]
[378634293,1754934632205,-23.34029572,0.00016107,2]
[378634294,1754934632214,-580.8331,0.00016137,2]
[378634295,1754934632224,-150.0,0.00016168,2]
[378634296,1754934632233,-150.0,0.00016182,2]
[378634297,1754934632243,-300.0,0.0001619,2]
[378634298,1754934632252,-166.69625063,0.00016206,2]
[378634299,1754934632262,-150.0,0.00016207,2]
[378634300,1754934632271,-255.0,0.0001621,2]
[378634301,1754934632280,-729.2419491,0.0001621,2]
[378634303,1754934632289,-255.0,0.00016215,2]
[378634304,1754934632298,-205.49504072,0.0001622,2]
[378634305,1754934632308,-150.0,0.00016223,2]
[378634306,1754934632317,-1200.0,0.00016226,2]
[378634307,1754934632327,-300.0,0.00016227,2]
[378634308,1754934632336,-258.07279765,0.00016227,2]
[378634309,1754934632346,-150.0,0.00016227,2]
[378634310,1754934632355,-150.0,0.00016236,2]
[378634311,1754934632364,-150.0,0.00016237,2]
[378634312,1754934632374,-1000.0,0.00016238,2]
[378634313,1754934632383,-150.0,0.00016242,2]
[378634314,1754934632392,-300.0,0.00016247,2]
[378634315,1754934632401,-575.0,0.00016248,2]
[378634316,1754934632411,-176.21615273,0.00016249,2]
[378634317,1754934632420,-150.0,0.00016249,2]
[378634318,1754934632430,-150.0,0.00016249,2]
[378634319,1754934632439,-150.0,0.00016249,2]
[378634320,1754934632448,-150.0,0.00016249,2]
[378634321,1754934632458,-150.0,0.00016249,2]
[378634322,1754934632467,-150.0,0.00016249,2]
[378634323,1754934632476,-150.0,0.00016249,2]
[378634324,1754934632486,-270.62588641,0.00016249,2]
[378634325,1754934632495,-150.0,0.00016249,2]
[378634326,1754934632504,-150.0,0.00016249,2]
[378634327,1754934632513,-150.0,0.00016249,2]
[378634328,1754934632522,-150.0,0.00016249,2]
[378634329,1754934632531,-150.0,0.00016249,2]
[378634330,1754934632540,-166.35860213,0.00016249,2]
[378634331,1754934632550,-150.0,0.00016259,2]
[378634332,1754934632559,-150.0,0.00016259,2]
[378634333,1754934632568,-150.0,0.00016259,2]
[378634334,1754934632577,-550.0,0.0001626,2]
[378634335,1754934632586,-2183.31810187,0.0001626,2]
[378634336,1754934632596,-231.28369723,0.0001626,2]
[378634337,1754934632606,-151.0,0.0001626,2]
[378634338,1754934632615,-150.0,0.00016262,2]
[378634339,1754934632625,-1244.317,0.0001627,2]
[378634340,1754934632634,-1000.0,0.0001627,2]
[378634341,1754934632644,-1000.0,0.0001627,2]
[378634342,1754934632653,-1000.0,0.0001627,2]
[378634343,1754934632663,-1000.0,0.0001627,2]
[378634344,1754934632673,-1000.0,0.0001627,2]
[378634345,1754934632682,-1000.0,0.0001627,2]
[378634346,1754934632691,-878.26957283,0.0001627,2]
[378634347,1754934632724,-121.73042717,0.0001627,2]
[378634348,1754934632733,-1000.0,0.0001627,2]
[378634349,1754934632742,-261.24742817,0.00016272,2]
[378634350,1754934632752,-150.0,0.00016275,2]
[378634351,1754934632761,-150.0,0.00016275,2]
[378634352,1754934632776,-150.0,0.00016276,2]
[378634353,1754934632786,-150.0,0.0001628,2]
[378634354,1754934632795,-150.0,0.00016281,2]
[378634355,1754934632804,-150.0,0.00016281,2]
[378634356,1754934632814,-150.0,0.00016284,2]
[378634357,1754934632823,-129.7378303,0.00016286,2]
[378634358,1754934632834,-20.2621697,0.00016286,2]
[378634359,1754934632843,-150.0,0.0001629,2]
[378634360,1754934632855,-300.0,0.00016294,2]
[378634361,1754934632865,-150.0,0.00016301,2]
[378634362,1754934632874,-150.0,0.00016309,2]
[378634363,1754934632883,-2322.22639,0.0001631,2]
[378634364,1754934632893,-150.0,0.00016314,2]
[378634365,1754934632902,-2264.10087164,0.00016315,2]
[378634366,1754934632912,-150.0,0.00016317,2]
[378634367,1754934632921,-150.0,0.00016318,2]
[378634368,1754934632931,-2237.66929359,0.00016318,2]
[378634369,1754934632941,-150.0,0.00016324,2]
[378634370,1754934632950,-150.0,0.00016326,2]
[378634371,1754934632960,-332.76300145,0.00016328,2]
[378634372,1754934632969,-151.0,0.00016328,2]
[378634373,1754934632979,-500.0,0.00016328,2]
[378634374,1754934632989,-346.92554585,0.00016328,2]
[378634375,1754934632998,-151.0,0.00016328,2]
[378634376,1754934633008,-500.0,0.00016328,2]
[378634377,1754934633017,-151.0,0.00016328,2]
[378634378,1754934633027,-160.0,0.00016328,2]
[378634379,1754934633037,-600.0,0.00016328,2]
[378634380,1754934633047,-151.0,0.00016328,2]
[378634381,1754934633056,-500.0,0.00016328,2]
[378634382,1754934633067,-500.0,0.00016328,2]
[378634383,1754934633076,-151.0,0.00016328,2]
[378634384,1754934633087,-500.0,0.00016328,2]
[378634385,1754934633096,-151.0,0.00016328,2]
[378634386,1754934633106,-500.0,0.00016328,2]
[378634387,1754934633115,-500.0,0.00016328,2]
[378634388,1754934633126,-151.0,0.00016328,2]
[378634389,1754934633136,-500.0,0.00016328,2]
[378634390,1754934633146,-151.0,0.00016328,2]
[378634391,1754934633156,-500.0,0.00016328,2]
[378634392,1754934633165,-151.0,0.00016328,2]
[378634393,1754934633175,-151.0,0.00016328,2]
[378634394,1754934633184,-500.0,0.00016328,2]
[378634395,1754934633194,-151.0,0.00016328,2]
[378634396,1754934633204,-500.0,0.00016328,2]
[378634397,1754934633214,-500.0,0.00016328,2]
[378634398,1754934633224,-54.42800552,0.00016328,2]
[378634399,1754934633235,-96.57199448,0.00016328,2]
[378634400,1754934633245,-151.0,0.00016328,2]
[378634401,1754934633254,-500.0,0.00016328,2]
[378634402,1754934633263,-500.0,0.00016328,2]
[378634403,1754934633273,-500.0,0.00016328,2]
[378634404,1754934633282,-200.0,0.00016328,2]
[378634405,1754934633291,-168.12035876,0.00016328,2]
[378634406,1754934633303,-331.87964124,0.00016328,2]
[378634407,1754934633313,-151.0,0.00016328,2]
[378634408,1754934633323,-96.4838907,0.00016328,2]
[378634409,1754934633361,-375.7425325,0.00016328,2]
[378634410,1754934633372,-250.0,0.00016328,2]
[378634411,1754934633381,-250.0,0.00016328,2]
[378634412,1754934633391,-500.0,0.00016328,2]
[378634413,1754934633400,-250.0,0.00016328,2]
[378634414,1754934633409,-500.0,0.00016328,2]
[378634415,1754934633419,-250.0,0.00016328,2]
[378634416,1754934633428,-500.0,0.00016328,2]
[378634417,1754934633437,-185.70276693,0.00016328,2]
[378634418,1754934633449,-64.29723307,0.00016328,2]
[378634419,1754934633458,-500.0,0.00016328,2]
[378634420,1754934633467,-1255.09728039,0.00016328,2]
[378634421,1754934633477,-250.0,0.00016328,2]
[378634422,1754934633487,-500.0,0.00016328,2]
[378634423,1754934633496,-500.0,0.00016328,2]
[378634424,1754934633506,-250.0,0.00016328,2]
[378634425,1754934633516,-158.76909756,0.00016328,2]
[378634426,1754934633527,-250.0,0.00016328,2]
[378634427,1754934633537,-250.0,0.00016328,2]
[378634428,1754934633547,-250.0,0.00016328,2]
[378634429,1754934633556,-151.0,0.00016328,2]
[378634430,1754934633566,-183.5677422,0.00016328,2]
[378634431,1754934633577,-211.49235217,0.00016328,2]
[378634432,1754934633587,-500.0,0.00016328,2]
[378634433,1754934633596,-500.0,0.00016328,2]
[378634434,1754934633606,-500.0,0.00016328,2]
[378634435,1754934633616,-151.0,0.00016328,2]
[378634436,1754934633626,-500.0,0.00016328,2]
[378634437,1754934633636,-500.0,0.00016328,2]
[378634438,1754934633645,-500.0,0.00016328,2]
[378634439,1754934633655,-500.0,0.00016328,2]
[378634440,1754934633664,-500.0,0.00016328,2]
[378634441,1754934633674,-500.0,0.00016328,2]
[378634442,1754934633683,-500.0,0.00016328,2]
[378634443,1754934633693,-546.69287297,0.00016328,2]
[378634444,1754934633702,-500.0,0.00016328,2]
[378634445,1754934633711,-500.0,0.00016328,2]
[378634446,1754934633720,-500.0,0.00016328,2]
[378634447,1754934633729,-500.0,0.00016328,2]
[378634448,1754934633739,-545.76809848,0.00016328,2]
[378634449,1754934633748,-150.0,0.00016331,2]
[378634450,1754934633757,-4207.0,0.00016336,2]
[378634451,1754934633769,-266.41943072,0.00016338,2]
[378634452,1754934633778,-177.61295382,0.00016338,2]
[378634453,1754934633787,-266.41943072,0.00016338,2]
[378634454,1754934633796,-3345.74533995,0.00016338,2]
[378634455,1754934633807,-177.61295382,0.00016338,2]
[378634456,1754934633816,-164.47687096,0.00016338,2]
[378634457,1754934633826,-2734.93327581,0.00016338,2]
[378634458,1754934633836,-21044.936,0.00016338,2]
[378634459,1754934633847,-1854.2279,0.00016338,2]
[378634460,1754934633857,-5000.0,0.00016338,2]
[378634461,1754934633866,-150.0,0.0001634,2]
[378634462,1754934633875,-150.0,0.00016341,2]
[378634463,1754934633885,-150.0,0.00016349,2]
[378634464,1754934633895,-150.0,0.0001635,2]
[378634465,1754934633905,-150.0,0.00016355,2]
[378634466,1754934633915,-150.0,0.00016365,2]
[378634467,1754934633924,-150.0,0.00016368,2]
[378634468,1754934633934,-2347.87260389,0.0001637,2]
[378634469,1754934633943,-150.0,0.00016375,2]
[378634470,1754934633954,-500.0,0.00016383,2]
[378634471,1754934633963,-300.0,0.00016384,2]
[378634472,1754934633974,-300.0,0.00016387,2]
[378634473,1754934633983,-150.0,0.00016388,2]
[378634474,1754934633992,-150.0,0.00016395,2]
[378634475,1754934634002,-150.0,0.000164,2]
[378634476,1754934634012,-502.17535146,0.000164,2]
[378634477,1754934634022,-150.0,0.000164,2]
[378634478,1754934634032,-5000.0,0.00016407,2]
[378634479,1754934634041,-1718.81791581,0.00016407,2]
[378634480,1754934634063,-465.88844996,0.00016407,2]
[378634481,1754934634079,-2815.29363423,0.00016407,2]
[378634482,1754934634088,-2640.39407407,0.00016407,2]
[378634485,1754934637711,-564.98778868,0.00016205,2]
[378634486,1754934637759,-7.82596865,0.00016205,2]
[378634487,1754934637770,-2359.60592593,0.00016407,2]
[378634488,1754934637782,-5000.0,0.00016407,2]
[378634489,1754934637791,-150.0,0.00016408,2]
[378634490,1754934637801,-266.41943076,0.00016409,2]
[378634491,1754934637810,-300.0,0.00016412,2]
[378634492,1754934637820,-150.0,0.00016413,2]
[378634493,1754934637830,-2434.74389024,0.00016425,2]
[378634494,1754934637839,-249.078247,0.00016438,2]
[378634495,1754934637849,-400.0,0.00016438,2]
[378634496,1754934637858,-249.078247,0.00016438,2]
[378634497,1754934637869,-151.0,0.00016438,2]
[378634498,1754934637878,-400.0,0.00016438,2]
[378634499,1754934637887,-151.0,0.00016438,2]
[378634500,1754934637896,-151.0,0.00016438,2]
[378634501,1754934637905,-151.0,0.00016438,2]
[378634502,1754934637915,-151.0,0.00016438,2]
[378634503,1754934637924,-400.0,0.00016438,2]
[378634504,1754934637933,-189.63576317,0.00016438,2]
[378634505,1754934637955,-210.36423683,0.00016438,2]
[378634506,1754934637964,-400.0,0.00016438,2]
[378634507,1754934637974,-243.180883,0.00016438,2]
[378634509,1754934637983,-269.550016,0.00016438,2]
[378634511,1754934637992,-243.180883,0.00016438,2]
[378634513,1754934638002,-269.550016,0.00016438,2]
[378634514,1754934638011,-610.44,0.00016438,2]
[378634515,1754934638020,-151.0,0.00016438,2]
[378634516,1754934638030,-400.0,0.00016438,2]
[378634518,1754934638039,-596.14,0.00016438,2]
[378634519,1754934638048,-400.0,0.00016438,2]
[378634520,1754934638057,-908.2,0.00016438,2]
[378634521,1754934638067,-639.4,0.00016438,2]
[378634522,1754934638076,-548.05,0.00016438,2]
[378634523,1754934638085,-94.44396517,0.00016438,2]
[378634524,1754934638101,-305.55603483,0.00016438,2]
[378634526,1754934638110,-185.64486274,0.00016438,2]
[378634527,1754934638131,-688.81513726,0.00016438,2]
[378634528,1754934638140,-537.61,0.00016438,2]
[378634529,1754934638149,-400.0,0.00016438,2]
[378634530,1754934638158,-400.0,0.00016438,2]
[378634531,1754934638167,-446.87,0.00016438,2]
[378634532,1754934638177,-578.8,0.00016438,2]
[378634533,1754934638186,-400.0,0.00016438,2]
[378634534,1754934638197,-407.41,0.00016438,2]
[378634535,1754934638206,-400.0,0.00016438,2]
[378634536,1754934638215,-346.30561097,0.00016438,2]
[378634537,1754934638224,-400.0,0.00016438,2]
[378634538,1754934638235,-400.0,0.00016438,2]
[378634539,1754934638244,-976.18,0.00016438,2]
[378634540,1754934638254,-650.49,0.00016438,2]
[378634541,1754934638263,-400.0,0.00016438,2]
[378634542,1754934638272,-400.0,0.00016438,2]
[378634543,1754934638281,-835.89,0.00016438,2]
[378634544,1754934638290,-453.52,0.00016438,2]
[378634545,1754934638299,-400.0,0.00016438,2]
[378634546,1754934638310,-430.84,0.00016438,2]
[378634547,1754934638319,-400.0,0.00016438,2]
[378634548,1754934638329,-400.0,0.00016438,2]
[378634549,1754934638338,-400.0,0.00016438,2]
[378634550,1754934638349,-400.0,0.00016438,2]
[378634551,1754934638359,-400.0,0.00016438,2]
[378634552,1754934638371,-400.0,0.00016438,2]
[378634553,1754934638382,-400.0,0.00016438,2]
[378634554,1754934638392,-400.0,0.00016438,2]
[378634555,1754934638401,-408.62,0.00016438,2]
[378634556,1754934638410,-570.98,0.00016438,2]
[378634557,1754934638419,-800.1,0.00016438,2]
[378634558,1754934638430,-479.76,0.00016438,2]
[378634559,1754934638439,-422.4,0.00016438,2]
[378634560,1754934638448,-400.0,0.00016438,2]
[378634561,1754934638459,-919.09,0.00016438,2]
[378634562,1754934638469,-400.0,0.00016438,2]
[378634563,1754934638478,-400.0,0.00016438,2]
[378634564,1754934638492,-495.97,0.00016438,2]
[378634565,1754934638503,-400.0,0.00016438,2]
[378634566,1754934638514,-400.0,0.00016438,2]
[378634567,1754934638524,-335.2023322,0.00016438,2]
[378634568,1754934638533,-478.63,0.00016438,2]
[378634569,1754934638543,-400.0,0.00016438,2]
[378634570,1754934638552,-400.0,0.00016438,2]
[378634571,1754934638563,-555.02,0.00016438,2]
[378634572,1754934638572,-716.63,0.00016438,2]
[378634573,1754934638583,-557.81,0.00016438,2]
[378634574,1754934638596,-400.0,0.00016438,2]
[378634575,1754934638607,-400.0,0.00016438,2]
[378634576,1754934638618,-447.93,0.00016438,2]
[378634577,1754934638628,-400.0,0.00016438,2]
[378634578,1754934638638,-400.0,0.00016438,2]
[378634579,1754934638650,-1166.96,0.00016438,2]
[378634580,1754934638662,-400.0,0.00016438,2]
[378634581,1754934638671,-769.89,0.00016438,2]
[378634582,1754934638680,-848.64,0.00016438,2]
[378634583,1754934638689,-400.0,0.00016438,2]
[378634584,1754934638699,-914.0,0.00016438,2]
[378634585,1754934638707,-400.0,0.00016438,2]
[378634586,1754934638717,-400.0,0.00016438,2]
[378634587,1754934638726,-400.0,0.00016438,2]
[378634588,1754934638735,-400.0,0.00016438,2]
[378634589,1754934638744,-400.0,0.00016438,2]
[378634590,1754934638754,-895.19,0.00016438,2]
[378634591,1754934638765,-1380.07,0.00016438,2]
[378634592,1754934638781,-400.0,0.00016438,2]
[378634593,1754934638792,-1344.45,0.00016438,2]
[378634594,1754934638801,-1000.94,0.00016438,2]
[378634595,1754934638810,-177.58626959,0.00016438,2]
[378634596,1754934638822,-400.0,0.00016438,2]
[378634597,1754934638832,-400.0,0.00016438,2]
[378634598,1754934638841,-334.66586761,0.00016438,2]
[378634599,1754934638852,-400.0,0.00016438,2]
[378634600,1754934638861,-400.0,0.00016438,2]
[378634601,1754934638870,-400.0,0.00016438,2]
[378634602,1754934638879,-400.0,0.00016438,2]
[378634603,1754934638888,-400.0,0.00016438,2]
[378634604,1754934638897,-492.35,0.00016438,2]
[378634605,1754934638906,-400.0,0.00016438,2]
[378634606,1754934638916,-456.04,0.00016438,2]
[378634607,1754934638926,-517.75828775,0.00016438,2]
[378634608,1754934638935,-475.09,0.00016438,2]
[378634609,1754934638944,-400.0,0.00016438,2]
[378634610,1754934638953,-400.0,0.00016438,2]
[378634611,1754934638962,-1019.63,0.00016438,2]
[378634612,1754934638971,-506.42,0.00016438,2]
[378634613,1754934638981,-400.0,0.00016438,2]
[378634614,1754934638990,-937.69,0.00016438,2]
[378634615,1754934638999,-549.42,0.00016438,2]
[378634616,1754934639008,-241.00006582,0.00016438,2]
[378634617,1754934639018,-400.0,0.00016438,2]
[378634618,1754934639028,-1049.64,0.00016438,2]
[378634619,1754934639037,-1028.95,0.00016438,2]
[378634620,1754934639047,-400.0,0.00016438,2]
[378634621,1754934639056,-400.0,0.00016438,2]
[378634622,1754934639065,-400.0,0.00016438,2]
[378634623,1754934639075,-400.0,0.00016438,2]
[378634624,1754934639084,-457.77,0.00016438,2]
[378634625,1754934639094,-1015.43,0.00016438,2]
[378634626,1754934639103,-406.15,0.00016438,2]
[378634627,1754934639112,-400.0,0.00016438,2]
[378634628,1754934639121,-1591.23,0.00016438,2]
[378634629,1754934639130,-400.0,0.00016438,2]
[378634630,1754934639139,-1038.1,0.00016438,2]
[378634631,1754934639148,-400.0,0.00016438,2]
[378634632,1754934639157,-691.51,0.00016438,2]
[378634633,1754934639167,-400.0,0.00016438,2]
[378634634,1754934639176,-787.7,0.00016438,2]
[378634635,1754934639185,-542.81,0.00016438,2]
[378634636,1754934639194,-400.0,0.00016438,2]
[378634637,1754934639204,-400.0,0.00016438,2]
[378634638,1754934639213,-400.0,0.00016438,2]
[378634639,1754934639222,-400.0,0.00016438,2]
[378634640,1754934639231,-505.26,0.00016438,2]
[378634641,1754934639240,-1323.26,0.00016438,2]
[378634642,1754934639249,-483.11,0.00016438,2]
[378634643,1754934639258,-400.0,0.00016438,2]
[378634644,1754934639267,-1293.24,0.00016438,2]
[378634645,1754934639277,-400.0,0.00016438,2]
[378634646,1754934639286,-400.0,0.00016438,2]
[378634647,1754934639295,-1068.57,0.00016438,2]
[378634648,1754934639304,-400.0,0.00016438,2]
[378634649,1754934639313,-400.0,0.00016438,2]
[378634650,1754934639322,-220.42584448,0.00016438,2]
[378634651,1754934639331,-400.0,0.00016438,2]
[378634652,1754934639341,-400.0,0.00016438,2]
[378634653,1754934639350,-1041.68,0.00016438,2]
[378634654,1754934639359,-451.55,0.00016438,2]
[378634655,1754934639368,-437.62,0.00016438,2]
[378634656,1754934639378,-771.32,0.00016438,2]
[378634657,1754934639388,-1401.1,0.00016438,2]
[378634658,1754934639397,-400.0,0.00016438,2]
[378634659,1754934639408,-531.66,0.00016438,2]
[378634660,1754934639417,-960.89,0.00016438,2]
[378634661,1754934639427,-636.2,0.00016438,2]
[378634662,1754934639437,-400.0,0.00016438,2]
[378634663,1754934639447,-400.0,0.00016438,2]
[378634664,1754934639460,-400.0,0.00016438,2]
[378634665,1754934639471,-400.0,0.00016438,2]
[378634666,1754934639480,-400.0,0.00016438,2]
[378634667,1754934639489,-2540.6,0.00016438,2]
[378634668,1754934639499,-863.97,0.00016438,2]
[378634669,1754934639508,-400.0,0.00016438,2]
[378634670,1754934639518,-669.41,0.00016438,2]
[378634671,1754934639527,-400.0,0.00016438,2]
[378634672,1754934639537,-400.0,0.00016438,2]
[378634673,1754934639546,-510.12,0.00016438,2]
[378634674,1754934639556,-417.22,0.00016438,2]
[378634675,1754934639565,-400.0,0.00016438,2]
[378634676,1754934639574,-412.68,0.00016438,2]
[378634677,1754934639583,-400.0,0.00016438,2]
[378634679,1754934639592,-400.0,0.00016438,2]
[378634680,1754934639601,-400.0,0.00016438,2]
[378634681,1754934639610,-400.0,0.00016438,2]
[378634682,1754934639619,-400.0,0.00016438,2]
[378634683,1754934639628,-220.86,0.00016438,2]
[378634684,1754934639637,-523.94,0.00016438,2]
[378634685,1754934639648,-641.85,0.00016438,2]
[378634686,1754934639659,-400.0,0.00016438,2]
[378634687,1754934639668,-212.44371361,0.00016438,2]
[378634688,1754934639678,-400.0,0.00016438,2]
[378634689,1754934639687,-440.6,0.00016438,2]
[378634690,1754934639696,-400.0,0.00016438,2]
[378634691,1754934639706,-660.46,0.00016438,2]
[378634692,1754934639715,-500.14,0.00016438,2]
[378634693,1754934639724,-400.0,0.00016438,2]
[378634694,1754934639734,-400.0,0.00016438,2]
[378634695,1754934639743,-400.0,0.00016438,2]
[378634696,1754934639752,-1097.76,0.00016438,2]
[378634697,1754934639762,-400.0,0.00016438,2]
[378634698,1754934639775,-617.99,0.00016438,2]
[378634699,1754934639784,-582.44,0.00016438,2]
[378634700,1754934639794,-497.77,0.00016438,2]
[378634701,1754934639803,-400.0,0.00016438,2]
[378634702,1754934639814,-320.85139076,0.00016438,2]
[378634703,1754934639823,-400.0,0.00016438,2]
[378634704,1754934639833,-542.43,0.00016438,2]
[378634705,1754934639842,-400.0,0.00016438,2]
[378634706,1754934639852,-573.1,0.00016438,2]
[378634707,1754934639861,-400.0,0.00016438,2]
[378634708,1754934639871,-400.0,0.00016438,2]
[378634709,1754934639880,-400.0,0.00016438,2]
[378634710,1754934639889,-400.0,0.00016438,2]
[378634711,1754934639898,-1149.26,0.00016438,2]
[378634712,1754934639907,-726.1,0.00016438,2]
[378634713,1754934639916,-4312.58,0.00016438,2]
[378634714,1754934639926,-400.0,0.00016438,2]
[378634715,1754934639935,-400.0,0.00016438,2]
[378634716,1754934639944,-400.0,0.00016438,2]
[378634717,1754934639953,-400.0,0.00016438,2]
[378634718,1754934639962,-400.0,0.00016438,2]
[378634719,1754934639971,-407.1,0.00016438,2]
[378634720,1754934639982,-1515.3,0.00016438,2]
[378634721,1754934639991,-400.0,0.00016438,2]
[378634722,1754934640000,-400.89,0.00016438,2]
[378634723,1754934640010,-403.01,0.00016438,2]
[378634724,1754934640019,-479.4,0.00016438,2]
[378634725,1754934640029,-422.61,0.00016438,2]
[378634726,1754934640038,-1285.07,0.00016438,2]
[378634727,1754934640047,-400.0,0.00016438,2]
[378634728,1754934640056,-535.34,0.00016438,2]
[378634729,1754934640066,-400.0,0.00016438,2]
[378634730,1754934640076,-400.0,0.00016438,2]
[378634732,1754934640085,-400.0,0.00016438,2]
[378634734,1754934640094,-754.66,0.00016438,2]
[378634735,1754934640103,-400.0,0.00016438,2]
[378634736,1754934640112,-400.0,0.00016438,2]
[378634737,1754934640121,-400.0,0.00016438,2]
[378634738,1754934640130,-157.722512,0.00016438,2]
[378634739,1754934640140,-1621.91,0.00016438,2]
[378634740,1754934640150,-400.0,0.00016438,2]
[378634741,1754934640159,-400.0,0.00016438,2]
[378634742,1754934640169,-400.0,0.00016438,2]
[378634743,1754934640179,-400.0,0.00016438,2]
[378634744,1754934640189,-400.0,0.00016438,2]
[378634745,1754934640199,-400.0,0.00016438,2]
[378634746,1754934640208,-400.0,0.00016438,2]
[378634747,1754934640217,-775.95,0.00016438,2]
[378634748,1754934640227,-400.0,0.00016438,2]
[378634749,1754934640236,-400.0,0.00016438,2]
[378634750,1754934640246,-400.0,0.00016438,2]
[378634751,1754934640255,-456.77,0.00016438,2]
[378634752,1754934640265,-506.27,0.00016438,2]
[378634753,1754934640274,-686.69,0.00016438,2]
[378634754,1754934640287,-400.0,0.00016438,2]
[378634755,1754934640296,-629.73,0.00016438,2]
[378634756,1754934640305,-400.0,0.00016438,2]
[378634757,1754934640315,-400.0,0.00016438,2]
[378634758,1754934640333,-300.0,0.00016438,2]
[378634759,1754934640354,-400.0,0.00016438,2]
[378634760,1754934640364,-400.0,0.00016438,2]
[378634761,1754934640374,-750.77,0.00016438,2]
[378634762,1754934640383,-722.42,0.00016438,2]
[378634763,1754934640392,-1641.04,0.00016438,2]
[378634764,1754934640404,-403.6998024,0.00016438,2]
[378634765,1754934640413,-400.0,0.00016438,2]
[378634766,1754934640422,-2818.96,0.00016438,2]
[378634767,1754934640431,-924.62,0.00016438,2]
[378634768,1754934640441,-400.0,0.00016438,2]
[378634769,1754934640450,-400.81,0.00016438,2]
[378634770,1754934640459,-186.88783611,0.00016438,2]
[378634771,1754934640468,-629.59,0.00016438,2]
[378634772,1754934640478,-437.03,0.00016438,2]
[378634773,1754934640487,-668.75,0.00016438,2]
[378634774,1754934640497,-400.0,0.00016438,2]
[378634775,1754934640506,-400.0,0.00016438,2]
[378634776,1754934640515,-662.08,0.00016438,2]
[378634777,1754934640525,-400.0,0.00016438,2]
[378634778,1754934640535,-400.0,0.00016438,2]
[378634779,1754934640544,-1002.21,0.00016438,2]
[378634780,1754934640553,-1101.38,0.00016438,2]
[378634781,1754934640562,-1420.77,0.00016438,2]
[378634782,1754934640570,-400.0,0.00016438,2]
[378634783,1754934640580,-400.0,0.00016438,2]
[378634784,1754934640589,-400.0,0.00016438,2]
[378634785,1754934640598,-401.01,0.00016438,2]
[378634786,1754934640607,-435.5043,0.00016438,2]
[378634787,1754934640616,-400.0,0.00016438,2]
[378634788,1754934640625,-435.5043,0.00016438,2]
[378634789,1754934640634,-525.41,0.00016438,2]
[378634790,1754934640642,-400.0,0.00016438,2]
[378634791,1754934640652,-619.17,0.00016438,2]